fUST/lending_fUST_20260424
["ID","MTS","AMOUNT","RATE_DAILY","PERIOD"]
[421100832,1777044642484,-305.12435766,0.00019178,2]
[421100833,1777044642494,-595.87692072,0.00019178,2]
[421100834,1777044642503,-500.0,0.00019178,2]
[421100835,1777044642512,-500.0,0.00019178,2]
[421100836,1777044642522,-930.52,0.00019178,2]
[421100837,1777044642532,-1359.5,0.00019178,2]
[421100838,1777044642542,-500.0,0.00019178,2]
[421100839,1777044642551,-500.0,0.00019178,2]
[421100840,1777044642560,-500.0,0.00019178,2]
[421100841,1777044642570,-500.0,0.00019178,2]
[421100842,1777044642579,-1000.0,0.00019178,2]
[421100843,1777044642588,-500.0,0.00019178,2]
[421100844,1777044642598,-500.0,0.00019178,2]
[421100845,1777044642607,-500.0,0.00019178,2]
[421100846,1777044642616,-523.8880216,0.00019178,2]
[421100847,1777044642626,-500.0,0.00019178,2]
[421100848,1777044642635,-500.0,0.00019178,2]
[421100849,1777044642645,-500.0,0.00019178,2]
[421100850,1777044642654,-500.0,0.00019178,2]
[421100851,1777044642663,-509.03182188,0.00019178,2]
[421100852,1777044642673,-500.0,0.00019178,2]
[421100853,1777044642682,-3798.42,0.00019178,2]
[421100854,1777044642692,-510.20863824,0.00019178,2]
[421100855,1777044642701,-546.04165556,0.00019178,2]
[421100856,1777044642711,-500.0,0.00019178,2]
[421100857,1777044642720,-519.67995533,0.00019178,2]
[421100858,1777044642730,-1979.86,0.00019178,2]
[421100859,1777044642739,-500.0,0.00019178,2]
[421100860,1777044642748,-500.0,0.00019178,2]
[421100861,1777044642757,-500.0,0.00019178,2]
[421100862,1777044642766,-500.0,0.00019178,2]
[421100863,1777044642775,-500.0,0.00019178,2]
[421100864,1777044642785,-1255.89,0.00019178,2]
[421100865,1777044642794,-680.64,0.00019178,2]
[421100866,1777044642803,-500.0,0.00019178,2]
[421100867,1777044642812,-500.0,0.00019178,2]
[421100868,1777044642822,-500.0,0.00019178,2]
[421100869,1777044642831,-151.0,0.00019178,2]
[421100870,1777044642841,-151.574304,0.00019178,2]
[421100871,1777044642850,-500.0,0.00019178,2]
[421100872,1777044642859,-500.0,0.00019178,2]
[421100873,1777044642869,-500.0,0.00019178,2]
[421100874,1777044642878,-508.57280123,0.00019178,2]
[421100875,1777044642888,-594.1,0.00019178,2]
[421100876,1777044642898,-500.0,0.00019178,2]
[421100877,1777044642907,-500.0,0.00019178,2]
[421100878,1777044642916,-506.68965688,0.00019178,2]
[421100879,1777044642926,-500.0,0.00019178,2]
[421100880,1777044642935,-689.1,0.00019178,2]
[421100881,1777044642944,-500.0,0.00019178,2]
[421100882,1777044642954,-500.0,0.00019178,2]
[421100883,1777044642963,-239.89537311,0.00019178,2]
[421100884,1777044642973,-522.46815624,0.00019178,2]
[421100885,1777044642982,-500.0,0.00019178,2]
[421100886,1777044642992,-514.19047706,0.00019178,2]
[421100887,1777044643001,-500.0,0.00019178,2]
[421100888,1777044643010,-530.01569804,0.00019178,2]
[421100889,1777044643020,-500.0,0.00019178,2]
[421100890,1777044643030,-2171.0583,0.00019178,2]
[421100891,1777044643040,-500.0,0.00019178,2]
[421100892,1777044643050,-518.20508403,0.00019178,2]
[421100893,1777044643059,-1949.11,0.00019178,2]
[421100894,1777044643068,-669.02,0.00019178,2]
[421100895,1777044643078,-631.0,0.00019178,2]
[421100896,1777044643087,-500.0,0.00019178,2]
[421100897,1777044643096,-951.2,0.00019178,2]
[421100898,1777044643106,-4183.43,0.00019178,2]
[421100899,1777044643118,-500.0,0.00019178,2]
[421100900,1777044643128,-268.59583804,0.00019178,2]
[421100901,1777044643138,-500.0,0.00019178,2]
[421100902,1777044643147,-2386.4,0.00019178,2]
[421100903,1777044643157,-516.04804614,0.00019178,2]
[421100904,1777044643166,-500.0,0.00019178,2]
[421100905,1777044643175,-500.0,0.00019178,2]
[421100907,1777044643185,-1131.36,0.00019178,2]
[421100908,1777044643195,-640.68611758,0.00019178,2]
[421100909,1777044643204,-500.0,0.00019178,2]
[421100910,1777044643213,-500.0,0.00019178,2]
[421100911,1777044643223,-500.0,0.00019178,2]
[421100912,1777044643232,-1131.37,0.00019178,2]
[421100915,1777044643243,-6359.04,0.00019178,2]
[421100918,1777044643252,-17381.44,0.00019178,2]
[421100921,1777044643262,-500.0,0.00019178,2]
[421100923,1777044643271,-237.67074737,0.00019178,2]
[421100925,1777044643280,-521.82587658,0.00019178,2]
[421100928,1777044643290,-1096.8,0.00019178,2]
[421100929,1777044643299,-500.0,0.00019178,2]
[421100930,1777044643308,-188.95131421,0.00019178,2]
[421100931,1777044643318,-6012.2,0.00019178,2]
[421100932,1777044643328,-500.0,0.00019178,2]
[421100933,1777044643337,-500.0,0.00019178,2]
[421100934,1777044643346,-218.6520506,0.00019178,2]
[421100935,1777044643355,-579.40166886,0.00019178,2]
[421100936,1777044643364,-500.0,0.00019178,2]
[421100937,1777044643373,-500.0,0.00019178,2]
[421100938,1777044643382,-500.0,0.00019178,2]
[421100939,1777044643391,-500.0,0.00019178,2]
[421100941,1777044643400,-1728.45,0.00019178,2]
[421100943,1777044643409,-2260.8,0.00019178,2]
[421100945,1777044643418,-500.0,0.00019178,2]
[421100946,1777044643428,-500.0,0.00019178,2]
[421100947,1777044643437,-11161.34,0.00019178,2]
[421100948,1777044643446,-345.75469941,0.00019178,2]
[421100949,1777044643455,-1023.17,0.00019178,2]
[421100950,1777044643465,-953.19,0.00019178,2]
[421100951,1777044643474,-3612.58,0.00019178,2]
[421100952,1777044643483,-500.0,0.00019178,2]
[421100953,1777044643492,-1910.57,0.00019178,2]
[421100954,1777044643502,-1445.79,0.00019178,2]
[421100955,1777044643511,-5292.38,0.00019178,2]
[421100956,1777044643520,-500.0,0.00019178,2]
[421100957,1777044643530,-1370.24,0.00019178,2]
[421100958,1777044643540,-500.0,0.00019178,2]
[421100959,1777044643551,-896.42,0.00019178,2]
[421100960,1777044643560,-500.0,0.00019178,2]
[421100961,1777044643570,-500.0,0.00019178,2]
[421100962,1777044643580,-1303.53,0.00019178,2]
[421100963,1777044643589,-500.0,0.00019178,2]
[421100964,1777044643598,-1459.15,0.00019178,2]
[421100965,1777044643607,-500.0,0.00019178,2]
[421100967,1777044643618,-500.0,0.00019178,2]
[421100968,1777044643628,-677.74,0.00019178,2]
[421100969,1777044643638,-16450.56,0.00019178,2]
[421100970,1777044643647,-500.0,0.00019178,2]
[421100971,1777044643658,-1512.93,0.00019178,2]
[421100972,1777044643667,-3280.61,0.00019178,2]
[421100973,1777044643677,-1503.82,0.00019178,2]
[421100974,1777044643686,-500.0,0.00019178,2]
[421100975,1777044643696,-3826.67,0.00019178,2]
[421100976,1777044643705,-500.0,0.00019178,2]
[421100977,1777044643714,-500.0,0.00019178,2]
[421100979,1777044643723,-1435.58,0.00019178,2]
[421100980,1777044643732,-919.05,0.00019178,2]
[421100982,1777044643742,-744.64,0.00019178,2]
[421100984,1777044643751,-3275.04,0.00019178,2]
[421100986,1777044643760,-1879.04,0.00019178,2]
[421100988,1777044643769,-599.33729755,0.00019178,2]
[421100990,1777044643779,-646.95054827,0.00019178,2]
[421100992,1777044643787,-500.0,0.00019178,2]
[421100994,1777044643797,-500.0,0.00019178,2]
[421100996,1777044643806,-500.0,0.00019178,2]
[421100998,1777044643815,-1353.68,0.00019178,2]
[421101000,1777044643825,-1544.78,0.00019178,2]
[421101002,1777044643834,-7175.02,0.00019178,2]
[421101004,1777044643843,-1650.57,0.00019178,2]
[421101006,1777044643853,-500.0,0.00019178,2]
[421101008,1777044643863,-888.22,0.00019178,2]
[421101010,1777044643872,-4496.97,0.00019178,2]
[421101012,1777044643883,-11620.11,0.00019178,2]
[421101015,1777044643892,-500.0,0.00019178,2]
[421101017,1777044643902,-500.0,0.00019178,2]
[421101018,1777044643911,-500.0,0.00019178,2]
[421101020,1777044643922,-7718.14,0.00019178,2]
[421101023,1777044643932,-2436.56,0.00019178,2]
[421101024,1777044643941,-761.96,0.00019178,2]
[421101027,1777044643950,-500.0,0.00019178,2]
[421101029,1777044643959,-500.0,0.00019178,2]
[421101031,1777044643969,-1399.15,0.00019178,2]
[421101033,1777044643979,-2533.4,0.00019178,2]
[421101035,1777044643988,-500.0,0.00019178,2]
[421101037,1777044643998,-812.07,0.00019178,2]
[421101039,1777044644007,-2053.08,0.00019178,2]
[421101041,1777044644016,-2923.08,0.00019178,2]
[421101043,1777044644025,-500.0,0.00019178,2]
[421101045,1777044644034,-500.0,0.00019178,2]
[421101047,1777044644044,-2296.77,0.00019178,2]
[421101049,1777044644053,-2674.69,0.00019178,2]
[421101051,1777044644063,-500.0,0.00019178,2]
[421101053,1777044644072,-500.0,0.00019178,2]
[421101055,1777044644081,-11526.72,0.00019178,2]
[421101057,1777044644090,-376.52769762,0.00019178,2]
[421101059,1777044644100,-3519.58,0.00019178,2]
[421101061,1777044644108,-500.0,0.00019178,2]
[421101063,1777044644117,-9089.66,0.00019178,2]
[421101065,1777044644127,-2192.44,0.00019178,2]
[421101067,1777044644136,-7987.72,0.00019178,2]
[421101069,1777044644146,-3778.42,0.00019178,2]
[421101071,1777044644155,-500.0,0.00019178,2]
[421101073,1777044644164,-687.94,0.00019178,2]
[421101075,1777044644174,-500.0,0.00019178,2]
[421101077,1777044644183,-5509.2,0.00019178,2]
[421101079,1777044644192,-617.42,0.00019178,2]
[421101081,1777044644201,-946.09,0.00019178,2]
[421101083,1777044644210,-1099.14,0.00019178,2]
[421101085,1777044644220,-1776.64,0.00019178,2]
[421101087,1777044644229,-1251.31,0.00019178,2]
[421101089,1777044644239,-500.0,0.00019178,2]
[421101091,1777044644248,-500.0,0.00019178,2]
[421101093,1777044644257,-500.0,0.00019178,2]
[421101095,1777044644266,-500.0,0.00019178,2]
[421101097,1777044644277,-2901.55,0.00019178,2]
[421101099,1777044644286,-475.81734164,0.00019178,2]
[421101101,1777044644296,-591.58,0.00019178,2]
[421101103,1777044644305,-500.0,0.00019178,2]
[421101105,1777044644315,-734.01,0.00019178,2]
[421101107,1777044644324,-534.21759874,0.00019178,2]
[421101109,1777044644333,-1635.5,0.00019178,2]
[421101111,1777044644343,-534.21759874,0.00019178,2]
[421101113,1777044644353,-500.0,0.00019178,2]
[421101115,1777044644362,-534.21759874,0.00019178,2]
[421101117,1777044644372,-534.21759874,0.00019178,2]
[421101119,1777044644381,-534.21759876,0.00019178,2]
[421101121,1777044644391,-545.43704589,0.00019178,2]
[421101122,1777044644400,-1209.33,0.00019178,2]
[421101123,1777044644409,-944.1,0.00019178,2]
[421101124,1777044644418,-530.35558495,0.00019178,2]
[421101125,1777044644427,-645.45,0.00019178,2]
[421101126,1777044644436,-2911.41,0.00019178,2]
[421101127,1777044644446,-500.0,0.00019178,2]
[421101128,1777044644455,-500.0,0.00019178,2]
[421101129,1777044644464,-5913.89,0.00019178,2]
[421101130,1777044644474,-1641.74,0.00019178,2]
[421101131,1777044644483,-500.0,0.00019178,2]
[421101132,1777044644493,-1490.39,0.00019178,2]
[421101133,1777044644502,-500.0,0.00019178,2]
[421101134,1777044644511,-176.71838924,0.00019178,2]
[421101135,1777044644521,-7400.81,0.00019178,2]
[421101136,1777044644531,-7342.54,0.00019178,2]
[421101137,1777044644540,-500.0,0.00019178,2]
[421101138,1777044644550,-2074.72,0.00019178,2]
[421101139,1777044644559,-500.0,0.00019178,2]
[421101140,1777044644569,-500.0,0.00019178,2]
[421101141,1777044644578,-523.2334948,0.00019178,2]
[421101142,1777044644588,-500.0,0.00019178,2]
[421101143,1777044644597,-15003.41,0.00019178,2]
[421101144,1777044644652,-500.0,0.00019178,2]
[421101145,1777044644662,-6900.66,0.00019178,2]
[421101146,1777044644671,-45883.93,0.00019178,2]
[421101147,1777044644680,-517.23774996,0.00019178,2]
[421101148,1777044644690,-392.14312984,0.00019178,2]
[421101149,1777044644699,-500.0,0.00019178,2]
[421101150,1777044644708,-597.52,0.00019178,2]
[421101151,1777044644718,-534.06992068,0.00019178,2]
[421101153,1777044644728,-500.0,0.00019178,2]
[421101155,1777044644737,-500.0,0.00019178,2]
[421101157,1777044644746,-500.0,0.00019178,2]
[421101159,1777044644756,-2490.42,0.00019178,2]
[421101161,1777044644765,-500.0,0.00019178,2]
[421101163,1777044644774,-500.0,0.00019178,2]
[421101165,1777044644783,-2164.56,0.00019178,2]
[421101167,1777044644792,-500.0,0.00019178,2]
[421101169,1777044644801,-4191.15,0.00019178,2]
[421101171,1777044644810,-1093.93,0.00019178,2]
[421101173,1777044644819,-15554.41,0.00019178,2]
[421101175,1777044644828,-537.09462491,0.00019178,2]
[421101177,1777044644837,-1444.22,0.00019178,2]
[421101179,1777044644846,-500.0,0.00019178,2]
[421101181,1777044644855,-537.66281805,0.00019178,2]
[421101183,1777044644864,-2660.73,0.00019178,2]
[421101185,1777044644873,-500.0,0.00019178,2]
[421101187,1777044644882,-341.5231908,0.00019178,2]
[421101188,1777044644892,-2146.59,0.00019178,2]
[421101191,1777044644902,-500.0,0.00019178,2]
[421101192,1777044644911,-500.0,0.00019178,2]
[421101194,1777044644920,-470.52452528,0.00019178,2]
[421101196,1777044644929,-514.47,0.00019178,2]
[421101198,1777044644939,-500.0,0.00019178,2]
[421101200,1777044644948,-2508.42,0.00019178,2]
[421101202,1777044644957,-500.0,0.00019178,2]
[421101205,1777044644966,-315.81811066,0.00019178,2]
[421101207,1777044644976,-500.0,0.00019178,2]
[421101209,1777044644986,-590.14,0.00019178,2]
[421101211,1777044644995,-15573.8,0.00019178,2]
[421101213,1777044645004,-500.0,0.00019178,2]
[421101215,1777044645014,-500.0,0.00019178,2]
[421101217,1777044645023,-500.0,0.00019178,2]
[421101219,1777044645032,-166.0,0.00019178,3]
[421101220,1777044645041,-160.0,0.00019331,2]
[421101222,1777044645050,-642.601118,0.00019331,2]
[421101224,1777044645059,-1125.202236,0.00019331,2]
[421101227,1777044645070,-160.0,0.00019331,2]
[421101229,1777044645079,-1344.084097,0.00019331,2]
[421101231,1777044645089,-2528.168194,0.00019331,2]
[421101233,1777044645098,-2487.15318209,0.00019384,2]
[421101235,1777044645107,-3435.1236422,0.0001944,2]
[421101237,1777044645116,-181.2210634,0.0001944,2]
[421101239,1777044645126,-16783.7182604,0.0001944,2]
[421101241,1777044645135,-151.0,0.00019452,2]
[421101243,1777044645145,-500.0,0.00019452,2]
[421101244,1777044645154,-966.182661,0.00019452,2]
[421101246,1777044645163,-250.201689,0.00019452,2]
[421101249,1777044645173,-500.0,0.00019452,2]
[421101250,1777044645182,-500.0,0.00019452,2]
[421101251,1777044645192,-500.0,0.00019452,2]
[421101252,1777044645201,-500.0,0.00019452,2]
[421101253,1777044645210,-500.0,0.00019452,2]
[421101254,1777044645219,-500.0,0.00019452,2]
[421101255,1777044645228,-500.0,0.00019452,2]
[421101256,1777044645237,-500.0,0.00019452,2]
[421101257,1777044645246,-2495.49,0.00019452,2]
[421101258,1777044645255,-500.0,0.00019452,2]
[421101259,1777044645264,-500.0,0.00019452,2]
[421101260,1777044645274,-172.0,0.00019452,2]
[421101261,1777044645284,-154.0,0.00019452,2]
[421101262,1777044645294,-154.0,0.00019452,2]
[421101263,1777044645303,-154.0,0.00019452,2]
[421101264,1777044645312,-154.0,0.00019452,2]
[421101265,1777044645322,-166.0,0.00019452,2]
[421101266,1777044645331,-154.0,0.00019452,2]
[421101267,1777044645341,-166.0,0.00019452,2]
[421101268,1777044645350,-154.0,0.00019452,2]
[421101269,1777044645359,-166.0,0.00019452,2]
[421101270,1777044645368,-286.38728251,0.00019452,2]
[421101271,1777044645377,-340.0,0.00019452,2]
[421101272,1777044645387,-200.0,0.00019452,2]
[421101273,1777044645395,-340.0,0.00019452,2]
[421101274,1777044645405,-340.0,0.00019452,2]
[421101275,1777044645414,-340.0,0.00019452,2]
[421101276,1777044645424,-340.0,0.00019452,2]
[421101277,1777044645433,-340.0,0.00019452,2]
[421101278,1777044645442,-367.55222082,0.00019452,2]
[421101279,1777044645451,-649.0,0.00019452,2]
[421101280,1777044645461,-649.0,0.00019452,2]
[421101281,1777044645470,-649.0,0.00019452,2]
[421101282,1777044645479,-649.0,0.00019452,2]
[421101283,1777044645487,-649.0,0.00019452,2]
[421101284,1777044645496,-649.0,0.00019452,2]
[421101285,1777044645505,-649.0,0.00019452,2]
[421101286,1777044645515,-649.0,0.00019452,2]
[421101287,1777044645524,-649.0,0.00019452,2]
[421101288,1777044645534,-649.0,0.00019452,2]
[421101289,1777044645543,-500.0,0.00019452,2]
[421101290,1777044645552,-649.0,0.00019452,2]
[421101291,1777044645562,-649.0,0.00019452,2]
[421101292,1777044645571,-649.0,0.00019452,2]
[421101293,1777044645580,-649.0,0.00019452,2]
[421101294,1777044645590,-649.0,0.00019452,2]
[421101295,1777044645599,-174.34040862,0.00019452,2]
[421101296,1777044645609,-164.0,0.00019452,2]
[421101297,1777044645618,-192.65524063,0.00019452,2]
[421101298,1777044645627,-500.0,0.00019452,2]
[421101299,1777044645637,-408.54387473,0.00019452,2]
[421101300,1777044645646,-500.0,0.00019452,2]
[421101301,1777044645655,-500.0,0.00019452,2]
[421101302,1777044645665,-500.0,0.00019452,2]
[421101303,1777044645675,-720.48,0.00019452,2]
[421101304,1777044645684,-500.0,0.00019452,2]
[421101305,1777044645693,-1101.87,0.00019452,2]
[421101306,1777044645702,-446.83205598,0.00019452,2]
[421101307,1777044645712,-1730.54,0.00019452,2]
[421101308,1777044645721,-1021.83,0.00019452,2]
[421101309,1777044645731,-500.0,0.00019452,2]
[421101310,1777044645740,-1525.05,0.00019452,2]
[421101311,1777044645749,-500.0,0.00019452,2]
[421101312,1777044645759,-295.75541846,0.00019452,2]
[421101313,1777044645768,-218.10846556,0.00019452,2]
[421101314,1777044645779,-1184.76,0.00019452,2]
[421101315,1777044645788,-500.0,0.00019452,2]
[421101316,1777044645798,-1647.01,0.00019452,2]
[421101317,1777044645808,-500.0,0.00019452,2]
[421101318,1777044645818,-500.0,0.00019452,2]
[421101319,1777044645827,-55243.953831,0.00019452,2]
[421101320,1777044645836,-718.49,0.00019452,2]
[421101321,1777044645846,-500.0,0.00019452,2]
[421101322,1777044645855,-500.0,0.00019452,2]
[421101323,1777044645865,-151.0,0.00019452,2]
[421101324,1777044645874,-151.0,0.00019452,2]
[421101325,1777044645883,-500.0,0.00019452,2]
[421101326,1777044645893,-151.0,0.00019452,2]
[421101327,1777044645902,-151.0,0.00019452,2]
[421101328,1777044645912,-151.0,0.00019452,2]
[421101329,1777044645921,-151.0,0.00019452,2]
[421101330,1777044645931,-500.0,0.00019452,2]
[421101331,1777044645940,-500.0,0.00019452,2]
[421101332,1777044645949,-500.0,0.00019452,2]
[421101333,1777044645959,-500.0,0.00019452,2]
[421101334,1777044645968,-2287.71,0.00019452,2]
[421101335,1777044645978,-500.0,0.00019452,2]
[421101336,1777044645987,-513.5,0.00019452,2]
[421101337,1777044645996,-500.0,0.00019452,2]
[421101338,1777044646005,-500.0,0.00019452,2]
[421101339,1777044646015,-500.0,0.00019452,2]
[421101340,1777044646024,-2074.22,0.00019452,2]
[421101341,1777044646034,-500.0,0.00019452,2]
[421101342,1777044646043,-500.0,0.00019452,2]
[421101343,1777044646052,-500.0,0.00019452,2]
[421101345,1777044646062,-267.60794467,0.00019452,2]
[421101346,1777044646071,-500.0,0.00019452,2]
[421101347,1777044646080,-500.0,0.00019452,2]
[421101348,1777044646089,-500.0,0.00019452,2]
[421101349,1777044646099,-500.0,0.00019452,2]
[421101350,1777044646108,-1145.87,0.00019452,2]
[421101351,1777044646117,-203.52085673,0.00019452,2]
[421101352,1777044646126,-500.0,0.00019452,2]
[421101353,1777044646136,-500.0,0.00019452,2]
[421101354,1777044646146,-500.0,0.00019452,2]
[421101356,1777044646155,-559.7,0.00019452,2]
[421101357,1777044646165,-500.0,0.00019452,2]
[421101358,1777044646174,-765.0,0.00019452,2]
[421101359,1777044646183,-765.0,0.00019452,2]
[421101360,1777044646193,-765.0,0.00019452,2]
[421101361,1777044646203,-765.0,0.00019452,2]
[421101362,1777044646212,-765.0,0.00019452,2]
[421101363,1777044646221,-765.0,0.00019452,2]
[421101364,1777044646230,-765.0,0.00019452,2]
[421101365,1777044646239,-765.0,0.00019452,2]
[421101366,1777044646248,-765.0,0.00019452,2]
[421101367,1777044646258,-500.0,0.00019452,2]
[421101368,1777044646267,-771.753,0.00019452,2]
[421101369,1777044646276,-462.96255573,0.00019452,2]
[421101370,1777044646286,-500.0,0.00019452,2]
[421101371,1777044646297,-999.9,0.00019452,2]
[421101372,1777044646306,-670.72,0.00019452,2]
[421101373,1777044646316,-193.00769878,0.00019452,2]
[421101374,1777044646327,-328.24211524,0.00019452,2]
[421101375,1777044646336,-666.5,0.00019452,2]
[421101376,1777044646346,-500.0,0.00019452,2]
[421101377,1777044646356,-500.0,0.00019452,2]
[421101378,1777044646365,-500.0,0.00019452,2]
[421101379,1777044646376,-566.44210012,0.00019452,2]
[421101380,1777044646386,-500.0,0.00019452,2]
[421101381,1777044646395,-886.36,0.00019452,2]
[421101382,1777044646405,-500.0,0.00019452,2]
[421101383,1777044646415,-635.84,0.00019452,2]
[421101384,1777044646424,-500.0,0.00019452,2]
[421101385,1777044646434,-500.0,0.00019452,2]
[421101386,1777044646443,-500.0,0.00019452,2]
[421101387,1777044646454,-1530.61,0.00019452,2]
[421101388,1777044646464,-500.0,0.00019452,2]
[421101389,1777044646473,-1436.79,0.00019452,2]
[421101390,1777044646482,-500.0,0.00019452,2]
[421101391,1777044646491,-1104.11,0.00019452,2]
[421101392,1777044646500,-500.0,0.00019452,2]
[421101393,1777044646509,-639.49174352,0.00019452,2]
[421101394,1777044646518,-500.0,0.00019452,2]
[421101395,1777044646527,-500.0,0.00019452,2]
[421101396,1777044646536,-500.0,0.00019452,2]
[421101397,1777044646545,-500.0,0.00019452,2]
[421101398,1777044646554,-390.98207309,0.00019452,2]
[421101399,1777044646565,-500.0,0.00019452,2]
[421101400,1777044646574,-500.0,0.00019452,2]
[421101401,1777044646583,-500.0,0.00019452,2]
[421101402,1777044646592,-584.18,0.00019452,2]
[421101403,1777044646601,-500.0,0.00019452,2]
[421101404,1777044646610,-500.0,0.00019452,2]
[421101405,1777044646620,-500.0,0.00019452,2]
[421101406,1777044646630,-500.0,0.00019452,2]
[421101407,1777044646640,-500.0,0.00019452,2]
[421101408,1777044646649,-1184.76,0.00019452,2]
[421101409,1777044646658,-500.0,0.00019452,2]
[421101410,1777044646668,-500.0,0.00019452,2]
[421101411,1777044646678,-500.0,0.00019452,2]
[421101412,1777044646688,-500.0,0.00019452,2]
[421101413,1777044646697,-535.665,0.00019452,2]
[421101414,1777044646708,-500.0,0.00019452,2]
[421101415,1777044646717,-500.0,0.00019452,2]
[421101416,1777044646727,-771.79,0.00019452,2]
[421101417,1777044646737,-500.0,0.00019452,2]
[421101418,1777044646747,-500.0,0.00019452,2]
[421101419,1777044646757,-500.0,0.00019452,2]
[421101420,1777044646766,-500.0,0.00019452,2]
[421101421,1777044646775,-242.80714019,0.00019452,2]
[421101422,1777044646784,-3287.88,0.00019452,2]
[421101423,1777044646794,-500.0,0.00019452,2]
[421101424,1777044646803,-500.0,0.00019452,2]
[421101425,1777044646812,-500.0,0.00019452,2]
[421101426,1777044646821,-500.0,0.00019452,2]
[421101427,1777044646831,-500.0,0.00019452,2]
[421101428,1777044646840,-6198.83,0.00019452,2]
[421101429,1777044646849,-500.0,0.00019452,2]
[421101430,1777044646859,-544.21,0.00019452,2]
[421101431,1777044646868,-500.0,0.00019452,2]
[421101432,1777044646877,-500.0,0.00019452,2]
[421101433,1777044646886,-500.0,0.00019452,2]
[421101434,1777044646895,-500.0,0.00019452,2]
[421101435,1777044646905,-500.0,0.00019452,2]
[421101436,1777044646914,-1014.9,0.00019452,2]
[421101437,1777044646923,-500.0,0.00019452,2]
[421101438,1777044646933,-972.89,0.00019452,2]
[421101439,1777044646943,-500.0,0.00019452,2]
[421101440,1777044646951,-1336.76,0.00019452,2]
[421101441,1777044646961,-500.0,0.00019452,2]
[421101442,1777044646970,-805.3,0.00019452,2]
[421101443,1777044646979,-500.0,0.00019452,2]
[421101444,1777044646988,-1094.44,0.00019452,2]
[421101445,1777044646998,-2145.62,0.00019452,2]
[421101446,1777044647008,-500.0,0.00019452,2]
[421101447,1777044647017,-500.0,0.00019452,2]
[421101448,1777044647026,-526.30145085,0.00019452,2]
[421101449,1777044647036,-567.75019984,0.00019452,2]
[421101450,1777044647046,-500.0,0.00019452,2]
[421101451,1777044647055,-500.0,0.00019452,2]
[421101452,1777044647064,-381.9215066,0.00019452,2]
[421101453,1777044647074,-740.13,0.00019452,2]
[421101454,1777044647084,-600.06,0.00019452,2]
[421101455,1777044647093,-500.0,0.00019452,2]
[421101456,1777044647102,-500.0,0.00019452,2]
[421101457,1777044647112,-500.0,0.00019452,2]
[421101458,1777044647121,-500.0,0.00019452,2]
[421101459,1777044647131,-500.0,0.00019452,2]
[421101460,1777044647140,-500.0,0.00019452,2]
[421101461,1777044647150,-1043.49,0.00019452,2]
[421101462,1777044647159,-500.0,0.00019452,2]
[421101463,1777044647170,-500.0,0.00019452,2]
[421101464,1777044647179,-1021.66,0.00019452,2]
[421101465,1777044647189,-554.06,0.00019452,2]
[421101466,1777044647199,-500.0,0.00019452,2]
[421101467,1777044647207,-500.0,0.00019452,2]
[421101468,1777044647216,-4071.18,0.00019452,2]
[421101469,1777044647226,-2235.17,0.00019452,2]